[Event "XXII Obert Internacional d'Escacs Sant Marti 2022"]
[Site "Barcelona, Spain"]
[Date "2022.07.13"]
[Round "1.9"]
[White "Dominguez Laguna, Eduard"]
[Black "Munoz, Miguel"]
[Result "0-1"]
[TimeControl "1.30 fb 30"]
[WhiteElo "1957"]
[BlackElo "2408"]

1. e4 {[%clk 01:30:58]} {[%emt 00:00:01]} d5 {[%clk 01:23:34]} {[%emt
00:07:26]} 2. exd5 {[%clk 01:31:12]} {[%emt 00:00:16]} Qxd5 {[%clk 01:23:58]}
{[%emt 00:00:05]} 3. Nc3 {[%clk 01:31:31]} {[%emt 00:00:11]} Qa5 {[%clk
01:24:15]} {[%emt 00:00:13]} 4. d4 {[%clk 01:31:48]} {[%emt 00:00:13]} Nf6
{[%clk 01:24:38]} {[%emt 00:00:07]} 5. a3 {[%clk 01:31:28]} {[%emt 00:00:52]}
Bg4 {[%clk 01:24:59]} {[%emt 00:00:08]} 6. f3 {[%clk 01:31:09]} {[%emt
00:00:49]} Bd7 {[%clk 01:25:24]} {[%emt 00:00:05]} 7. b4 {[%clk 01:27:00]}
{[%emt 00:04:39]} Qb6 {[%clk 01:25:47]} {[%emt 00:00:07]} 8. Bc4 {[%clk
01:23:47]} {[%emt 00:03:43]} e6 {[%clk 01:21:01]} {[%emt 00:05:16]} 9. Nge2
{[%clk 01:21:17]} {[%emt 00:03:00]} Bd6 {[%clk 01:19:46]} {[%emt 00:01:44]} 10.
O-O {[%clk 01:19:45]} {[%emt 00:02:02]} h6 {[%clk 01:12:17]} {[%emt 00:07:58]}
11. Ne4 {[%clk 01:09:33]} {[%emt 00:10:42]} Bb5 {[%clk 01:12:22]} {[%emt
00:00:26]} 12. Nxd6+ {[%clk 01:06:14]} {[%emt 00:03:48]} cxd6 {[%clk 01:12:41]}
{[%emt 00:00:11]} 13. Bxb5+ {[%clk 00:51:58]} {[%emt 00:14:47]} Qxb5 {[%clk
01:12:49]} {[%emt 00:00:21]} 14. Nc3 {[%clk 00:50:44]} {[%emt 00:01:44]} Qc4
{[%clk 00:58:46]} {[%emt 00:14:33]} 15. Ne4 {[%clk 00:46:03]} {[%emt 00:05:11]}
Ke7 {[%clk 00:55:50]} {[%emt 00:03:26]} 16. Bf4 {[%clk 00:40:43]} {[%emt
00:05:50]} Rd8 {[%clk 00:52:51]} {[%emt 00:03:28]} 17. Qd2 {[%clk 00:33:10]}
{[%emt 00:08:03]} Nd5 {[%clk 00:52:10]} {[%emt 00:01:11]} 18. Bg3 {[%clk
00:32:28]} {[%emt 00:01:13]} Nc6 {[%clk 00:52:08]} {[%emt 00:00:32]} 19. Rfd1
{[%clk 00:31:11]} {[%emt 00:01:47]} e5 {[%emt 00:04:58]} 20. dxe5 {[%clk
00:28:06]} {[%emt 00:00:02]} dxe5 {[%clk 00:50:15]} {[%emt 00:01:28]} 21. Qf2
{[%clk 00:20:47]} {[%emt 00:07:49]} b6 {[%clk 00:47:02]} {[%emt 00:03:43]} 22.
Rac1 {[%clk 00:17:52]} {[%emt 00:03:25]} f6 {[%clk 00:43:34]} {[%emt 00:03:58]}
23. Rd3 {[%clk 00:16:07]} {[%emt 00:02:15]} Nc7 {[%clk 00:39:30]} {[%emt
00:04:34]} 24. Qf1 {[%clk 00:10:57]} {[%emt 00:05:41]} Nd4 {[%clk 00:33:50]}
{[%emt 00:06:10]} 25. Rc3 {[%clk 00:05:57]} {[%emt 00:05:30]} Qxf1+ {[%clk
00:32:26]} {[%emt 00:01:53]} 26. Kxf1 {[%clk 00:06:22]} {[%emt 00:00:06]} Rac8
{[%clk 00:30:53]} {[%emt 00:02:02]} 27. Rd3 {[%clk 00:04:51]} {[%emt 00:02:02]}
Nce6 {[%clk 00:30:03]} {[%emt 00:01:19]} 28. c4 {[%clk 00:04:20]} {[%emt
00:01:02]} Rd7 {[%clk 00:28:30]} {[%emt 00:02:03]} 29. Rdc3 {[%clk 00:03:28]}
{[%emt 00:01:22]} a5 {[%clk 00:27:02]} {[%emt 00:01:58]} 30. Bf2 {[%clk
00:02:48]} {[%emt 00:01:10]} Nf4 {[%clk 00:25:41]} {[%emt 00:01:51]} 31. Bxd4
{[%clk 00:02:02]} {[%emt 00:01:16]} exd4 {[%clk 00:25:52]} {[%emt 00:00:19]} 32.
Rb3 {[%clk 00:01:55]} {[%emt 00:00:37]} a4 {[%clk 00:26:04]} {[%emt 00:00:18]}
33. Rbb1 {[%clk 00:02:00]} {[%emt 00:00:25]} Nd3 {[%clk 00:25:53]} {[%emt
00:00:41]} 34. Rc2 {[%clk 00:01:52]} {[%emt 00:00:39]} f5 {[%clk 00:25:33]}
{[%emt 00:00:49]} 35. Ng3 {[%clk 00:01:38]} {[%emt 00:00:44]} g6 {[%clk
00:25:25]} {[%emt 00:00:38]} 36. Ne2 {[%clk 00:01:39]} {[%emt 00:00:30]} Ne5
{[%clk 00:25:41]} {[%emt 00:00:14]} 37. Rcc1 {[%clk 00:01:02]} {[%emt
00:01:06]} Rxc4 {[%clk 00:25:23]} {[%emt 00:00:48]} 38. Rxc4 {[%clk 00:00:34]}
{[%emt 00:00:58]} Nxc4 {[%clk 00:25:47]} {[%emt 00:00:06]} 39. Ke1 {[%clk
00:00:35]} {[%emt 00:00:30]} Nxa3 {[%clk 00:26:00]} {[%emt 00:00:17]} 40. Nf4
{[%clk 00:30:41]} {[%emt 00:00:23]} Nxb1 {[%clk 00:56:20]} {[%emt 00:00:09]}
0-1